fUSD/lending_fUSD_20240319
["ID","MTS","AMOUNT","RATE_DAILY","PERIOD"]
[319569969,1710871841702,-500.0,0.00035616,5]
[319569970,1710871841712,-500.0,0.00035616,5]
[319569971,1710871841725,-500.0,0.00035616,5]
[319569972,1710871841742,-1040.38,0.00035616,5]
[319569973,1710871841756,-500.0,0.00035616,5]
[319569974,1710871841766,-500.0,0.00035616,5]
[319569975,1710871841779,-986.37,0.00035616,5]
[319569976,1710871841789,-500.0,0.00035616,5]
[319569977,1710871841799,-500.0,0.00035616,5]
[319569978,1710871841809,-580.58262069,0.00035616,5]
[319569979,1710871841819,-5000.0,0.00035616,5]
[319569980,1710871841829,-727.27,0.00035616,5]
[319569981,1710871841839,-500.0,0.00035616,5]
[319569982,1710871841849,-1052.35,0.00035616,5]
[319569983,1710871841858,-500.0,0.00035616,5]
[319569984,1710871841869,-585.44,0.00035616,5]
[319569985,1710871841878,-879.36,0.00035616,5]
[319569986,1710871841889,-500.0,0.00035616,5]
[319569987,1710871841899,-500.0,0.00035616,5]
[319569988,1710871841909,-500.0,0.00035616,5]
[319569989,1710871841919,-500.0,0.00035616,5]
[319569990,1710871841929,-500.0,0.00035616,5]
[319569991,1710871841938,-500.0,0.00035616,5]
[319569992,1710871841948,-3615.4,0.00035616,5]
[319569993,1710871841957,-500.0,0.00035616,5]
[319569994,1710871841967,-500.0,0.00035616,5]
[319569995,1710871841977,-500.0,0.00035616,5]
[319569996,1710871841986,-1054.09,0.00035616,5]
[319569997,1710871841996,-151.0,0.00035616,7]
[319569998,1710871842006,-500.0,0.00035616,5]
[319569999,1710871842016,-6517.73,0.00035616,5]
[319570000,1710871842027,-500.0,0.00035616,5]
[319570001,1710871842036,-1896.67,0.00035616,5]
[319570002,1710871842047,-500.0,0.00035616,5]
[319570003,1710871842056,-500.0,0.00035616,5]
[319570004,1710871842067,-9759.29,0.00035616,5]
[319570005,1710871842078,-500.0,0.00035616,5]
[319570006,1710871842088,-500.0,0.00035616,5]
[319570007,1710871842098,-747.0,0.00035616,5]
[319570008,1710871842109,-1235.25,0.00035616,5]
[319570009,1710871842120,-500.0,0.00035616,5]
[319570010,1710871842130,-500.0,0.00035616,5]
[319570011,1710871842141,-500.0,0.00035616,5]
[319570012,1710871842152,-500.0,0.00035616,5]
[319570013,1710871842163,-3513.85,0.00035616,5]
[319570014,1710871842174,-500.0,0.00035616,5]
[319570015,1710871842184,-506.47263918,0.00035616,5]
[319570016,1710871842194,-151.0,0.00035616,7]
[319570018,1710871842204,-500.0,0.00035616,5]
[319570020,1710871842214,-500.0,0.00035616,5]
[319570021,1710871842225,-792.47,0.00035616,5]
[319570023,1710871842236,-2058.74,0.00035616,5]
[319570025,1710871842246,-502.08415409,0.00035616,5]
[319570027,1710871842257,-500.0,0.00035616,5]
[319570029,1710871842270,-151.0,0.00035616,7]
[319570031,1710871842280,-3710.52,0.00035616,5]
[319570033,1710871842291,-500.0,0.00035616,5]
[319570034,1710871842300,-57961.83,0.00035616,5]
[319570035,1710871842310,-500.0,0.00035616,5]
[319570036,1710871842320,-151.0,0.00035616,7]
[319570038,1710871842330,-500.0,0.00035616,5]
[319570040,1710871842339,-479.527903,0.00035616,7]
[319570042,1710871842349,-535.9,0.00035616,5]
[319570044,1710871842359,-500.0,0.00035616,5]
[319570046,1710871842369,-500.0,0.00035616,5]
[319570048,1710871842379,-32606.61,0.00035616,5]
[319570050,1710871842389,-1902.08,0.00035616,5]
[319570052,1710871842399,-479.527903,0.00035616,7]
[319570055,1710871842409,-5470.52,0.00035616,5]
[319570057,1710871842419,-16492.86,0.00035616,5]
[319570060,1710871842428,-2821.62,0.00035616,5]
[319570062,1710871842437,-500.0,0.00035616,5]
[319570065,1710871842447,-651.72,0.00035616,5]
[319570067,1710871842456,-500.0,0.00035616,5]
[319570070,1710871842465,-9044.08,0.00035616,5]
[319570073,1710871842475,-763.06,0.00035616,5]
[319570076,1710871842485,-500.0,0.00035616,5]
[319570081,1710871842495,-500.0,0.00035616,5]
[319570084,1710871842504,-500.0,0.00035616,5]
[319570086,1710871842513,-669.21,0.00035616,5]
[319570090,1710871842526,-9979.33,0.00035616,5]
[319570093,1710871842536,-500.0,0.00035616,5]
[319570096,1710871842545,-2159.77,0.00035616,5]
[319570099,1710871842555,-500.0,0.00035616,5]
[319570103,1710871842565,-500.0,0.00035616,5]
[319570106,1710871842574,-151.0,0.00035616,7]
[319570109,1710871842583,-500.0,0.00035616,5]
[319570111,1710871842592,-18307.52,0.00035616,5]
[319570113,1710871842601,-1003.53,0.00035616,5]
[319570116,1710871842610,-500.0,0.00035616,5]
[319570119,1710871842619,-500.0,0.00035616,5]
[319570122,1710871842628,-630.68,0.00035616,5]
[319570125,1710871842638,-14266.56,0.00035616,5]
[319570128,1710871842647,-500.0,0.00035616,5]
[319570130,1710871842655,-500.0,0.00035616,5]
[319570132,1710871842664,-2310.86,0.00035616,5]
[319570134,1710871842674,-3714.32,0.00035616,5]
[319570136,1710871842685,-1872.94,0.00035616,5]
[319570138,1710871842694,-151.0,0.00035616,7]
[319570139,1710871842704,-500.0,0.00035616,5]
[319570141,1710871842713,-500.0,0.00035616,5]
[319570142,1710871842724,-835.89,0.00035616,5]
[319570143,1710871842735,-6398.06,0.00035616,5]
[319570144,1710871842744,-897.69,0.00035616,5]
[319570145,1710871842754,-500.0,0.00035616,5]
[319570146,1710871842764,-27517.33,0.00035616,5]
[319570147,1710871842775,-151.0,0.00035616,7]
[319570148,1710871842785,-4657.94,0.00035616,5]
[319570149,1710871842794,-611.15,0.00035616,5]
[319570150,1710871842806,-500.0,0.00035616,5]
[319570151,1710871842816,-500.0,0.00035616,5]
[319570152,1710871842825,-6263.6,0.00035616,5]
[319570153,1710871842834,-1977.79,0.00035616,5]
[319570154,1710871842844,-500.0,0.00035616,5]
[319570155,1710871842853,-500.0,0.00035616,5]
[319570156,1710871842863,-1126.64,0.00035616,5]
[319570157,1710871842872,-151.0,0.00035616,7]
[319570158,1710871842881,-155.615376,0.00035616,7]
[319570159,1710871842891,-876.42,0.00035616,5]
[319570160,1710871842901,-5001.25,0.00035616,5]
[319570161,1710871842910,-664.27,0.00035616,5]
[319570162,1710871842919,-6543.36,0.00035616,5]
[319570164,1710871842933,-151.0,0.00035616,7]
[319570166,1710871842942,-155.615376,0.00035616,7]
[319570167,1710871842951,-500.0,0.00035616,5]
[319570168,1710871842960,-500.0,0.00035616,5]
[319570169,1710871842969,-500.0,0.00035616,5]
[319570170,1710871842978,-151.0,0.00035616,7]
[319570171,1710871842988,-500.0,0.00035616,5]
[319570172,1710871842997,-7564.86,0.00035616,5]
[319570173,1710871843007,-500.0,0.00035616,5]
[319570174,1710871843019,-5458.92,0.00035616,5]
[319570175,1710871843028,-500.0,0.00035616,5]
[319570176,1710871843038,-151.0,0.00035616,7]
[319570177,1710871843047,-151.0,0.00035616,7]
[319570178,1710871843057,-500.0,0.00035616,5]
[319570179,1710871843066,-6247.48,0.00035616,5]
[319570180,1710871843076,-5232.97,0.00035616,5]
[319570181,1710871843085,-500.0,0.00035616,5]
[319570182,1710871843094,-1837.39,0.00035616,5]
[319570184,1710871843104,-500.0,0.00035616,5]
[319570185,1710871843114,-977.67,0.00035616,5]
[319570186,1710871843124,-151.0,0.00035616,7]
[319570187,1710871843133,-66664.94,0.00035616,5]
[319570188,1710871843144,-500.0,0.00035616,5]
[319570189,1710871843153,-553.62,0.00035616,5]
[319570190,1710871843163,-500.0,0.00035616,5]
[319570191,1710871843172,-9578.51,0.00035616,5]
[319570192,1710871843182,-7246.74,0.00035616,5]
[319570193,1710871843191,-500.0,0.00035616,5]
[319570194,1710871843200,-3782.75,0.00035616,5]
[319570195,1710871843214,-5080.72,0.00035616,5]
[319570196,1710871843223,-500.0,0.00035616,5]
[319570197,1710871843233,-4794.68,0.00035616,5]
[319570198,1710871843243,-675.83,0.00035616,5]
[319570199,1710871843252,-632.62,0.00035616,5]
[319570200,1710871843262,-5731.78,0.00035616,5]
[319570201,1710871843272,-500.0,0.00035616,5]
[319570202,1710871843282,-611.61,0.00035616,5]
[319570203,1710871843291,-500.0,0.00035616,5]
[319570204,1710871843300,-10315.6,0.00035616,5]
[319570205,1710871843310,-9936.13,0.00035616,5]
[319570206,1710871843320,-500.0,0.00035616,5]
[319570207,1710871843330,-4280.33,0.00035616,5]
[319570208,1710871843339,-656.28,0.00035616,5]
[319570209,1710871843348,-500.0,0.00035616,5]
[319570210,1710871843358,-15294.52,0.00035616,5]
[319570211,1710871843368,-566.99,0.00035616,5]
[319570212,1710871843377,-6534.61,0.00035616,5]
[319570213,1710871843387,-500.0,0.00035616,5]
[319570214,1710871843396,-500.0,0.00035616,5]
[319570215,1710871843406,-500.0,0.00035616,5]
[319570216,1710871843415,-2541.46,0.00035616,5]
[319570217,1710871843425,-500.0,0.00035616,5]
[319570218,1710871843434,-10638.68,0.00035616,5]
[319570219,1710871843444,-501.3240065,0.00035616,5]
[319570220,1710871843453,-500.0,0.00035616,5]
[319570221,1710871843463,-266.706384,0.00035616,7]
[319570222,1710871843473,-1138.79,0.00035616,5]
[319570223,1710871843484,-500.0,0.00035616,5]
[319570224,1710871843493,-803.01,0.00035616,5]
[319570225,1710871843503,-500.0,0.00035616,5]
[319570226,1710871843514,-541.33,0.00035616,5]
[319570227,1710871843526,-266.706384,0.00035616,7]
[319570228,1710871843536,-11305.29,0.00035616,5]
[319570229,1710871843546,-575.11,0.00035616,5]
[319570230,1710871843556,-11737.37,0.00035616,5]
[319570231,1710871843566,-13391.36,0.00035616,5]
[319570232,1710871843576,-929.67,0.00035616,5]
[319570233,1710871843585,-500.0,0.00035616,5]
[319570234,1710871843595,-500.0,0.00035616,5]
[319570235,1710871843604,-8379.51,0.00035616,5]
[319570236,1710871843614,-151.0,0.00035616,7]
[319570237,1710871843623,-1663.22,0.00035616,5]
[319570238,1710871843633,-500.0,0.00035616,5]
[319570239,1710871843643,-12427.49,0.00035616,5]
[319570240,1710871843653,-151.0,0.00035616,7]
[319570241,1710871843662,-500.0,0.00035616,5]
[319570242,1710871843671,-3177.38,0.00035616,5]
[319570243,1710871843685,-1544.68,0.00035616,5]
[319570244,1710871843695,-508.74,0.00035616,5]
[319570245,1710871843704,-11546.32,0.00035616,5]
[319570246,1710871843714,-4012.95,0.00035616,5]
[319570247,1710871843727,-4647.47,0.00035616,5]
[319570248,1710871843737,-10283.52,0.00035616,5]
[319570249,1710871843749,-1519.81,0.00035616,5]
[319570250,1710871843758,-500.0,0.00035616,5]
[319570251,1710871843770,-500.0,0.00035616,5]
[319570252,1710871843779,-5414.65,0.00035616,5]
[319570253,1710871843788,-500.0,0.00035616,5]
[319570254,1710871843797,-151.0,0.00035616,7]
[319570255,1710871843808,-258.66117174,0.00035616,5]
[319570256,1710871843817,-19897.35,0.00035616,5]
[319570257,1710871843826,-500.0,0.00035616,5]
[319570258,1710871843835,-167.01301746,0.00035616,5]
[319570259,1710871843845,-500.0,0.00035616,5]
[319570260,1710871843854,-500.0,0.00035616,5]
[319570261,1710871843864,-500.0,0.00035616,5]
[319570262,1710871843873,-1241.09,0.00035616,5]
[319570263,1710871843883,-37060.8,0.00035616,5]
[319570264,1710871843892,-500.0,0.00035616,5]
[319570265,1710871843902,-12398.33,0.00035616,5]
[319570266,1710871843911,-1434.19,0.00035616,5]
[319570267,1710871843920,-7351.31,0.00035616,5]
[319570268,1710871843930,-500.0,0.00035616,5]
[319570269,1710871843939,-500.0,0.00035616,5]
[319570270,1710871843948,-2023.91,0.00035616,5]
[319570271,1710871843958,-500.0,0.00035616,5]
[319570272,1710871843967,-500.0,0.00035616,5]
[319570273,1710871843977,-500.0,0.00035616,5]
[319570274,1710871843986,-39756.47,0.00035616,5]
[319570275,1710871843995,-505.39,0.00035616,5]
[319570276,1710871844005,-3666.3,0.00035616,5]
[319570277,1710871844015,-500.0,0.00035616,5]
[319570278,1710871844038,-1931.28,0.00035616,5]
[319570279,1710871844048,-1080.31,0.00035616,5]
[319570280,1710871844058,-13007.89,0.00035616,5]
[319570281,1710871844069,-9929.77,0.00035616,5]
[319570282,1710871844079,-500.0,0.00035616,5]
[319570283,1710871844089,-7642.67,0.00035616,5]
[319570284,1710871844099,-1115.16,0.00035616,5]
[319570285,1710871844109,-12566.04,0.00035616,5]
[319570286,1710871844120,-500.0,0.00035616,5]
[319570287,1710871844130,-706.12,0.00035616,5]
[319570288,1710871844142,-500.0,0.00035616,5]
[319570289,1710871844153,-22287.32,0.00035616,5]
[319570290,1710871844163,-500.0,0.00035616,5]
[319570291,1710871844173,-500.0,0.00035616,5]
[319570292,1710871844183,-9595.09,0.00035616,5]
[319570293,1710871844193,-500.0,0.00035616,5]
[319570294,1710871844393,-500.0,0.00035616,5]
[319570295,1710871844403,-786.76,0.00035616,5]
[319570296,1710871844414,-500.0,0.00035616,5]
[319570297,1710871844424,-1904.94,0.00035616,5]
[319570298,1710871844435,-1221.33,0.00035616,5]
[319570299,1710871844445,-46689.15,0.00035616,5]
[319570300,1710871844456,-500.0,0.00035616,5]
[319570301,1710871844466,-500.0,0.00035616,5]
[319570302,1710871844476,-843.25,0.00035616,5]
[319570303,1710871844485,-1461.08,0.00035616,5]
[319570304,1710871844495,-500.0,0.00035616,5]
[319570305,1710871844506,-8088.79,0.00035616,5]
[319570306,1710871844516,-500.0,0.00035616,5]
[319570307,1710871844528,-419.640554,0.00035616,7]
[319570309,1710871844538,-500.0,0.00035616,5]
[319570311,1710871844547,-419.640554,0.00035616,7]
[319570313,1710871844557,-863.83,0.00035616,5]
[319570315,1710871844567,-303.07134097,0.00035616,5]
[319570317,1710871844576,-419.640554,0.00035616,7]
[319570319,1710871844586,-419.640554,0.00035616,7]
[319570321,1710871844595,-712.52,0.00035616,5]
[319570322,1710871844605,-4422.49,0.00035616,5]
[319570323,1710871844616,-8477.17,0.00035616,5]
[319570324,1710871844626,-151.0,0.00035616,7]
[319570325,1710871844637,-151.0,0.00035616,7]
[319570326,1710871844648,-500.0,0.00035616,5]
[319570327,1710871844659,-2502.27,0.00035616,5]
[319570328,1710871844677,-220.906018,0.00035616,7]
[319570329,1710871844688,-1407.92,0.00035616,5]
[319570330,1710871844700,-10879.64,0.00035616,5]
[319570331,1710871844710,-7077.52,0.00035616,5]
[319570332,1710871844723,-500.0,0.00035616,5]
[319570333,1710871844735,-2037.52,0.00035616,5]
[319570334,1710871844746,-5217.29,0.00035616,5]
[319570335,1710871844756,-2197.42,0.00035616,5]
[319570336,1710871844766,-4056.62,0.00035616,5]
[319570337,1710871844782,-151.0,0.00035616,7]
[319570338,1710871844794,-1044.68,0.00035616,5]
[319570339,1710871844804,-151.0,0.00035616,7]
[319570340,1710871844815,-8915.2,0.00035616,5]
[319570341,1710871844825,-151.0,0.00035616,7]
[319570342,1710871844835,-162.425416,0.00035616,7]
[319570343,1710871844846,-8837.36,0.00035616,5]
[319570344,1710871844857,-845.24,0.00035616,5]
[319570345,1710871844868,-21271.53,0.00035616,5]
[319570346,1710871844879,-3036.23,0.00035616,5]
[319570347,1710871844889,-500.0,0.00035616,5]
[319570348,1710871844899,-249.498149,0.00035616,7]
[319570349,1710871844909,-6379.37,0.00035616,5]
[319570350,1710871844919,-500.0,0.00035616,5]
[319570351,1710871844930,-583.6,0.00035616,5]
[319570352,1710871844941,-500.0,0.00035616,5]
[319570353,1710871844952,-6364.89,0.00035616,5]
[319570354,1710871844963,-932.32,0.00035616,5]
[319570355,1710871844975,-500.0,0.00035616,5]
[319570356,1710871844987,-151.0,0.00035616,7]
[319570357,1710871844998,-151.0,0.00035616,7]
[319570358,1710871845010,-6025.04,0.00035616,5]
[319570359,1710871845025,-15815.25,0.00035616,5]
[319570360,1710871845037,-569.83226676,0.00035616,5]
[319570361,1710871845048,-151.0,0.00035616,7]
[319570362,1710871845058,-500.0,0.00035616,5]
[319570363,1710871845069,-500.0,0.00035616,5]
[319570364,1710871845079,-151.0,0.00035616,7]
[319570365,1710871845089,-151.0,0.00035616,7]
[319570366,1710871845099,-500.0,0.00035616,5]
[319570367,1710871845110,-6493.67,0.00035616,5]
[319570368,1710871845120,-10789.98,0.00035616,5]
[319570369,1710871845129,-500.0,0.00035616,5]
[319570370,1710871845140,-500.0,0.00035616,5]
[319570371,1710871845149,-500.0,0.00035616,5]
[319570372,1710871845161,-1996.18,0.00035616,5]
[319570373,1710871845171,-1288.63,0.00035616,5]
[319570374,1710871845180,-500.0,0.00035616,5]
[319570375,1710871845191,-2277.65,0.00035616,5]
[319570377,1710871845201,-1018.57,0.00035616,5]
[319570379,1710871845211,-25754.2,0.00035616,5]
[319570381,1710871845221,-500.0,0.00035616,5]
[319570383,1710871845231,-287.55352523,0.00035616,5]
[319570385,1710871845241,-500.0,0.00035616,5]
[319570387,1710871845251,-4413.37,0.00035616,5]
[319570389,1710871845261,-6185.8,0.00035616,5]
[319570391,1710871845275,-2153.1,0.00035616,5]
[319570393,1710871845285,-3053.19,0.00035616,5]
[319570395,1710871845295,-500.0,0.00035616,5]
[319570397,1710871845305,-151.0,0.00035616,7]
[319570399,1710871845315,-151.0,0.00035616,7]
[319570401,1710871845324,-527.61,0.00035616,5]
[319570403,1710871845333,-151.0,0.00035616,7]
[319570404,1710871845343,-500.0,0.00035616,5]
[319570405,1710871845353,-500.0,0.00035616,5]
[319570406,1710871845363,-7357.06,0.00035616,5]
[319570407,1710871845373,-2185.93,0.00035616,5]
[319570408,1710871845386,-9735.42,0.00035616,5]
[319570409,1710871845397,-47642.27,0.00035616,5]
[319570410,1710871845413,-4747.66,0.00035616,5]
[319570411,1710871845470,-151.0,0.00035616,7]
[319570412,1710871845481,-151.0,0.00035616,7]
[319570414,1710871845492,-1712.141119,0.00035616,7]
[319570416,1710871845502,-151.0,0.00035616,7]
[319570418,1710871845512,-1712.141119,0.00035616,7]
[319570420,1710871845526,-500.0,0.00035616,8]
[319570421,1710871845536,-11066.66132553,0.00035825,8]
[319570422,1710871845547,-190.95971348,0.0003588,7]
[319570423,1710871845557,-178.04449098,0.00035889,2]
[319570424,1710871845568,-989965.13298006,0.0003589,9]
[319570426,1710871846316,-1105890.58185901,0.0003589,9]
[319570427,1710871846330,-823.70756629,0.0003589,9]
[319570428,1710871846348,-6578.9353203,0.0003589,9]
[319570429,1710871846374,-1712.141119,0.00035616,7]
[319570430,1710871846385,-1528.608881,0.0003589,9]
[319570431,1710871846397,-647.96,0.0003589,9]
[319570432,1710871846409,-385.28002,0.0003589,9]
[319570433,1710871846434,-4005.34475874,0.0003589,9]
[319570434,1710871846449,-18149.999998,0.0003589,9]
[319570435,1710871846495,-2982.82642208,0.0003589,9]
[319570436,1710871846522,-1733.48115,0.0003589,9]
[319570437,1710871846534,-12829.34321889,0.0003589,9]
[319570438,1710871847568,-173.37677938,0.000298,2]
[319570439,1710871847579,-8229.80642199,0.0003589,9]
[319570440,1710871847592,-6315.50895847,0.0003589,9]
[319570441,1710871847622,-556.7769308,0.0003589,9]
[319570442,1710871847634,-1529.11444612,0.0003589,9]
[319570443,1710871847646,-423.76249936,0.0003589,9]
[319570444,1710871847659,-1347.76004239,0.0003589,9]
[319570445,1710871847671,-1110.32972589,0.0003589,9]
[319570446,1710871847687,-1694.34386835,0.0003589,9]
[319570447,1710871847704,-116681.14906505,0.0003589,9]
[319570448,1710871847719,-2132.4,0.0003589,9]
[319570449,1710871847760,-64888.0,0.0003589,9]
[319570450,1710871848310,-1090.41172466,0.00033617,2]
[319570451,1710871848320,-1712.141119,0.00035616,7]
[319570452,1710871848330,-1712.141119,0.00035616,7]
[319570453,1710871848339,-1712.141119,0.00035616,7]
[319570454,1710871848348,-10566.5967333,0.0003589,9]
[319570455,1710871848653,-1360014.12935501,0.0003589,9]
[319570456,1710871848666,-509047.10744318,0.0003589,9]
[319570457,1710871848680,-1615.43295976,0.0003589,3]
[319570458,1710871848691,-500.0,0.0003589,5]
[319570459,1710871848701,-500.0,0.0003589,5]
[319570460,1710871848711,-500.0,0.0003589,5]
[319570461,1710871848722,-569.54,0.0003589,5]
[319570462,1710871848734,-500.0,0.0003589,5]
[319570463,1710871848744,-500.0,0.0003589,5]
[319570464,1710871848754,-500.0,0.0003589,5]
[319570465,1710871848764,-541.32,0.0003589,5]
[319570466,1710871848776,-500.0,0.0003589,5]
[319570467,1710871848785,-500.0,0.0003589,5]
[319570468,1710871848795,-500.0,0.0003589,5]
[319570469,1710871848805,-500.0,0.0003589,5]
[319570470,1710871848816,-282.08087961,0.0003589,5]
[319570471,1710871848825,-500.0,0.0003589,5]
[319570472,1710871848834,-500.0,0.0003589,5]
[319570473,1710871848844,-500.0,0.0003589,5]
[319570474,1710871848853,-742.9,0.0003589,5]
[319570475,1710871848864,-500.0,0.0003589,5]
[319570476,1710871848874,-500.0,0.0003589,5]
[319570477,1710871848884,-500.0,0.0003589,5]
[319570478,1710871848893,-500.0,0.0003589,5]
[319570479,1710871848904,-500.0,0.0003589,5]
[319570480,1710871848914,-500.0,0.0003589,5]
[319570481,1710871848923,-500.0,0.0003589,2]
[319570482,1710871848933,-3344.85,0.0003589,5]
[319570483,1710871848942,-500.0,0.0003589,5]
[319570484,1710871848952,-1535.3,0.0003589,5]
[319570485,1710871848962,-500.0,0.0003589,5]
[319570486,1710871848971,-500.0,0.0003589,5]
[319570487,1710871848982,-500.0,0.0003589,2]
[319570488,1710871848991,-500.0,0.0003589,5]
[319570489,1710871849002,-500.0,0.0003589,5]
[319570490,1710871849012,-500.0,0.0003589,5]
[319570491,1710871849024,-2977.24,0.0003589,5]
[319570492,1710871849033,-500.0,0.0003589,5]
[319570493,1710871849043,-500.0,0.0003589,5]
[319570494,1710871849052,-500.0,0.0003589,5]
[319570495,1710871849062,-500.0,0.0003589,5]
[319570496,1710871849073,-500.0,0.0003589,5]
[319570497,1710871849083,-500.0,0.0003589,5]
[319570498,1710871849093,-500.0,0.0003589,5]
[319570499,1710871849105,-500.0,0.0003589,5]
[319570500,1710871849115,-500.0,0.0003589,5]
[319570501,1710871849126,-714.13,0.0003589,5]
[319570502,1710871849136,-500.0,0.0003589,5]
[319570503,1710871849146,-500.0,0.0003589,5]
[319570504,1710871849155,-838.5,0.0003589,5]
[319570505,1710871849166,-2886.87,0.0003589,5]
[319570506,1710871849177,-500.0,0.0003589,5]
[319570507,1710871849187,-500.0,0.0003589,5]
[319570508,1710871849197,-501.33,0.0003589,5]
[319570509,1710871849207,-608.41,0.0003589,5]
[319570510,1710871849217,-500.0,0.0003589,5]
[319570511,1710871849227,-500.0,0.0003589,5]
[319570512,1710871849236,-1923.35,0.0003589,5]
[319570513,1710871849246,-500.0,0.0003589,5]
[319570514,1710871849256,-500.0,0.0003589,5]
[319570515,1710871849266,-1453.34,0.0003589,5]
[319570516,1710871849277,-567.97076574,0.0003589,5]
[319570517,1710871849287,-2213.91,0.0003589,5]
[319570518,1710871849297,-500.0,0.0003589,5]
[319570519,1710871849391,-500.0,0.0003589,5]
[319570520,1710871849402,-1703.85,0.0003589,5]
[319570521,1710871849411,-500.0,0.0003589,5]
[319570522,1710871849422,-500.0,0.0003589,5]
[319570523,1710871849431,-500.0,0.0003589,5]
[319570524,1710871849442,-500.0,0.0003589,5]
[319570525,1710871849451,-195.04551312,0.0003589,5]
[319570526,1710871849461,-502.70713624,0.0003589,5]
[319570527,1710871849472,-500.0,0.0003589,5]
[319570528,1710871849484,-1423.27,0.0003589,5]
[319570529,1710871849495,-637.06,0.0003589,5]
[319570530,1710871849506,-500.0,0.0003589,5]
[319570531,1710871849517,-500.0,0.0003589,5]
[319570532,1710871849528,-1617.12,0.0003589,5]
[319570533,1710871849538,-500.0,0.0003589,5]
[319570534,1710871849548,-500.0,0.0003589,5]
[319570535,1710871849558,-560.23,0.0003589,5]
[319570536,1710871849568,-500.0,0.0003589,5]
[319570537,1710871849577,-500.0,0.0003589,5]
[319570538,1710871849587,-500.0,0.0003589,5]
[319570539,1710871849596,-2692.91,0.0003589,5]
[319570540,1710871849606,-500.0,0.0003589,5]
[319570541,1710871849615,-500.0,0.0003589,5]
[319570542,1710871849624,-500.0,0.0003589,5]
[319570543,1710871849633,-500.0,0.0003589,5]
[319570544,1710871849644,-500.0,0.0003589,5]
[319570545,1710871849654,-500.0,0.0003589,5]
[319570546,1710871849664,-578.70535541,0.0003589,5]
[319570547,1710871849675,-3580.9,0.0003589,5]
[319570548,1710871849687,-2290.17,0.0003589,5]
[319570549,1710871849697,-500.0,0.0003589,5]
[319570550,1710871849706,-500.0,0.0003589,5]
[319570551,1710871849716,-500.0,0.0003589,5]
[319570552,1710871849728,-500.0,0.0003589,5]
[319570553,1710871849739,-500.0,0.0003589,5]
[319570554,1710871849749,-500.0,0.0003589,5]
[319570555,1710871849758,-500.0,0.0003589,5]
[319570556,1710871849769,-1458.91,0.0003589,5]
[319570557,1710871849780,-905.75,0.0003589,5]
[319570558,1710871849789,-500.0,0.0003589,5]
[319570559,1710871849799,-500.0,0.0003589,5]
[319570560,1710871849808,-2004.1,0.0003589,5]
[319570561,1710871849818,-500.0,0.0003589,5]
[319570562,1710871849827,-500.0,0.0003589,5]
[319570563,1710871849837,-1363.16,0.0003589,5]
[319570564,1710871849846,-599.44,0.0003589,5]
[319570565,1710871849856,-472.8736192,0.0003589,5]
[319570566,1710871849865,-822.22,0.0003589,5]
[319570567,1710871849874,-500.0,0.0003589,5]
[319570568,1710871849883,-500.0,0.0003589,5]
[319570569,1710871849893,-500.0,0.0003589,5]